bitfinex/quotes_SOLUSD_20250722
["timestamp","ask_amount","ask_price","bid_price","bid_amount"]
[1753159459271,11.01779987,197.16,197.1,11.01779987]
[1753159459443,11.01779987,197.15,197.09,11.01779987]
[1753159459648,11.01779987,197.16,197.11,5.07330931]
[1753159459871,11.01779987,197.16,197.11,5.74330931]
[1753159460072,11.01779987,197.15,197.08,11.68779987]
[1753159460244,0.72,197.19,197.07,5.07433906]
[1753159460245,11.01779987,197.12,197.07,5.07433906]
[1753159460450,11.01779987,197.11,197.07,5.74433906]
[1753159460649,11.01779987,197.11,197.07,5.07433906]
[1753159460855,11.01779987,197.09,197.04,0.67]
[1753159461056,11.01779987,197.09,197.03,5.07536923]
[1753159461355,7.41367014,197.09,197.03,5.07536923]
[1753159461574,7.41367014,197.09,197.03,13.15903937]
[1753159461759,16.78468397,197.11,197.03,5.74533331]
[1753159462055,26.0,197.11,197.03,0.67]
[1753159462377,5.07330931,197.11,197.03,5.74529953]
[1753159462572,7.41367014,197.09,197.03,5.74529953]
[1753159463072,7.41367014,197.08,197.03,5.07529953]
[1753159463247,11.04368179,197.08,197.03,5.74529953]
[1753159463448,5.07330931,197.11,197.03,5.74529953]
[1753159463759,22.57776868,197.12,197.03,5.74529953]
[1753159463960,11.04368179,197.08,197.03,5.74529953]
[1753159464359,11.04368179,197.08,197.03,5.07529953]
[1753159464560,11.04368179,197.07,197.03,5.07529953]
[1753159464764,11.04368179,197.08,197.03,5.74529953]
[1753159464962,22.57774083,197.12,197.03,5.74529953]
[1753159465163,11.04368179,197.1,197.04,0.67]
[1753159465363,5.07253728,197.14,197.05,11.04368179]
[1753159465565,0.72,197.19,197.07,11.04368179]
[1753159465867,11.04368179,197.14,197.08,11.71368179]
[1753159466358,11.04368179,197.14,197.02,0.03]
[1753159466359,17.50468397,197.13,197.02,5.1056127]
[1753159466560,11.04368179,197.09,197.05,0.67]
[1753159467371,17.50468397,197.13,197.05,0.67]
[1753159467567,11.04368179,197.07,197.02,0.7]
[1753159467754,0.72,197.09,197.02,0.7]
[1753159467755,11.04368179,197.05,197.02,0.7]
[1753159467953,11.04368179,197.05,197.02,0.03]
[1753159468268,11.04368179,197.03,197.02,0.03]
[1753159469678,16.11905102,197.03,197.02,0.03]
[1753159470174,16.83905102,197.03,197.02,0.03]
[1753159470350,16.11905102,197.03,197.02,0.03]
[1753159470551,5.07382414,197.09,197.02,0.7]
[1753159470750,11.04368179,197.06,197.02,0.7]
[1753159470969,0.72,197.17,197.03,11.71368179]
[1753159471172,11.04368179,197.1,197.04,11.71368179]
[1753159471368,16.78468397,197.16,197.05,0.67]
[1753159471581,11.04368179,197.09,197.06,5.07459656]
[1753159471778,5.79181837,197.17,197.07,11.71368179]
[1753159471993,5.0714678,197.19,197.08,0.67]
[1753159472170,11.04368179,197.17,197.1,11.04368179]
[1753159472358,5.06997827,197.24,197.14,11.04368179]
[1753159472554,5.06997827,197.24,197.06,32.83108798]
[1753159472555,11.04368179,197.17,197.15,0.67]
[1753159472777,11.04368179,197.16,197.12,0.67]
[1753159472982,0.72,197.19,197.08,0.67]
[1753159473171,11.04368179,197.1,197.06,5.07459656]
[1753159473556,0.72,197.16,197.07,5.74420814]
[1753159473557,11.04368179,197.09,197.07,5.74420814]
[1753159473982,5.07259719,197.14,197.07,5.74420814]
[1753159474177,11.04368179,197.09,197.07,5.74420814]
[1753159474376,11.04368179,197.09,197.06,5.07454653]
[1753159474582,11.04368179,197.09,197.06,5.74454653]
[1753159474763,11.04368179,197.09,197.06,5.07454653]
[1753159474961,11.04368179,197.09,197.07,0.67]
[1753159475173,5.07259719,197.14,197.03,5.07536923]
[1753159475360,11.04368179,197.08,197.03,5.74536923]
[1753159475683,5.07305194,197.12,197.04,5.74494241]
[1753159475979,16.78468397,197.1,197.02,0.03]
[1753159476476,11.04368179,197.05,197.02,0.03]
[1753159476858,11.04368179,197.04,197.02,0.03]
[1753159477290,11.04368179,197.03,197.02,0.03]
[1753159477898,5.79408159,197.08,197.02,0.03]
[1753159478061,11.04368179,197.04,197.02,0.03]
[1753159478261,11.04368179,197.03,197.02,0.03]
[1753159478982,11.04368179,197.06,197.02,0.69]
[1753159479196,16.78468397,197.1,197.02,0.69]
[1753159479394,11.04368179,197.06,197.02,0.69]
[1753159479591,11.04368179,197.06,197.02,0.03]
[1753159479793,11.04368179,197.03,197.02,0.03]
[1753159481212,0.7,197.08,197.02,0.03]
[1753159481378,11.04368179,197.05,197.02,0.03]
[1753159481576,0.7,197.08,197.02,0.03]
[1753159481778,11.04368179,197.03,197.02,0.03]
[1753159482204,11.04368179,197.03,196.91,11.90833292]
[1753159482205,0.7,197.03,196.91,11.90833292]
[1753159482376,11.04368179,197.04,196.97,11.04368179]
[1753159482584,11.04368179,197.03,196.98,0.66]
[1753159483079,11.04368179,197.0,196.94,0.03]
[1753159483278,0.7,197.02,196.94,0.03]
[1753159483491,11.04368179,196.99,196.94,0.03]
[1753159483697,11.04368179,197.0,196.95,0.66]
[1753159483993,11.04368179,196.99,196.94,5.10768863]
[1753159484200,11.04368179,197.05,196.98,11.04368179]
[1753159484388,11.04368179,197.04,196.99,0.66]
[1753159484587,11.04368179,197.05,197.0,0.66]
[1753159484902,11.04368179,197.04,197.01,0.66]
[1753159485092,11.04368179,197.03,197.01,0.66]
[1753159485279,5.77382414,197.09,197.01,0.66]
[1753159485485,7.41756556,197.03,196.99,0.66]
[1753159485695,7.41756556,197.03,197.0,5.73603491]
[1753159485890,7.41756556,197.03,197.0,5.07603491]
[1753159486090,0.7,197.06,197.0,5.07603491]
[1753159486414,7.41756556,197.03,197.0,5.07603491]
[1753159486729,7.41756556,197.03,197.0,0.66]
[1753159487209,7.41756556,197.01,196.95,5.73743082]
[1753159487503,7.41756556,196.98,196.94,0.03]
[1753159487892,5.07626513,197.0,196.94,0.03]
[1753159488091,7.41756556,196.98,196.94,0.03]
[1753159488277,5.07592769,197.01,196.94,0.03]
[1753159488478,7.41756556,196.98,196.94,0.69]
[1753159488685,7.41756556,196.98,196.94,0.03]
[1753159488904,0.7,197.03,196.95,0.66]
[1753159489208,0.7,197.03,196.96,0.03]
[1753159489411,7.41756556,197.02,196.96,0.69]
[1753159489582,0.7,197.06,196.96,0.69]
[1753159489583,7.41756556,197.01,196.96,0.69]
[1753159489900,7.41756556,197.0,196.96,0.69]
[1753159490089,7.41756556,197.0,196.96,5.76716043]
[1753159490291,7.41756556,196.98,196.96,0.03]
[1753159490617,7.41756556,196.97,196.96,0.03]
[1753159491178,7.41756556,196.98,196.96,0.03]
[1753159491701,0.7,197.01,196.96,0.03]
[1753159492005,7.41756556,196.98,196.96,0.03]
[1753159492189,7.41756556,196.97,196.96,0.03]
[1753159492389,5.07546265,197.03,196.96,0.03]
[1753159492597,7.41756556,197.0,196.96,0.03]
[1753159492805,5.07546265,197.03,196.96,0.03]
[1753159492806,16.78468397,197.02,196.96,0.03]
[1753159492992,7.41756556,196.98,196.96,0.03]
[1753159493315,24.20224953,196.97,196.96,0.03]
[1753159493603,24.90224953,196.97,196.96,0.03]
[1753159493981,29.97916479,196.97,196.96,0.03]
[1753159494183,8.11756556,196.97,196.96,0.03]
[1753159494494,16.78468397,196.99,196.96,0.03]
[1753159494694,7.41756556,196.97,196.96,0.03]
[1753159495090,8.11756556,196.97,196.96,0.03]
[1753159495398,21.86126538,196.99,196.96,0.03]
[1753159495399,16.78468397,196.99,196.96,0.03]
[1753159495595,7.41756556,196.97,196.96,0.03]
[1753159495801,8.11756556,196.97,196.96,0.03]
[1753159496188,39.19448082,196.97,196.96,0.03]
[1753159496417,55.97916479,196.97,196.96,0.03]
[1753159496722,20.30757843,197.05,196.96,8.10756556]
[1753159496899,6.1545,197.08,196.96,0.03]
[1753159497103,7.41756556,197.0,196.97,0.66]
[1753159497406,7.41756556,197.01,196.98,0.66]
[1753159497705,5.0735982,197.1,196.99,0.66]
[1753159497933,7.41756556,197.04,196.99,0.66]
[1753159498113,7.41756556,197.03,196.99,5.07614453]
[1753159498283,7.41756556,197.03,197.0,0.66]
[1753159498487,7.41756556,197.03,197.01,0.66]
[1753159498708,16.78468397,197.08,197.01,0.66]
[1753159498908,7.41756556,197.03,197.01,0.66]
[1753159499110,17.48468397,197.1,197.01,0.66]
[1753159499295,7.41756556,197.03,197.01,0.66]
[1753159499705,7.41756556,197.04,197.01,0.66]
[1753159499989,40.66,197.11,197.03,5.07536923]
[1753159500198,7.41756556,197.07,197.03,5.07536923]
[1753159500525,40.66,197.11,197.04,0.66]
[1753159501013,7.41756556,197.11,197.04,8.07756556]
[1753159501215,0.7,197.17,197.05,8.07756556]
[1753159501526,7.41756556,197.19,197.12,6.6442]
[1753159501818,8.137565,197.24,197.12,6.6442]
[1753159501819,0.06,197.24,197.15,7.41756556]
[1753159502007,0.06,197.24,197.15,0.66]
[1753159502315,7.41756556,197.18,197.15,0.66]
[1753159502532,0.06,197.24,197.16,0.66]
[1753159502833,7.41756556,197.17,197.13,0.66]
[1753159503112,4.41786325,197.24,197.12,6.6442]
[1753159503113,16.78468397,197.2,197.12,6.6442]
[1753159503314,0.06,197.24,197.13,0.66]
[1753159503496,7.41756556,197.22,197.15,7.41756556]
[1753159503695,7.41756556,197.19,197.16,0.66]
[1753159503920,0.06,197.24,197.16,0.66]
[1753159504091,7.41756556,197.21,197.16,0.66]
[1753159504293,5.07027745,197.23,197.16,5.73194741]
[1753159504599,7.41756556,197.21,197.16,5.73194741]
[1753159505001,0.7,197.2,197.14,7.41756556]
[1753159505325,0.7,197.2,197.1,42.0585]
[1753159505326,7.41756556,197.16,197.13,0.66]
[1753159505500,16.78468397,197.2,197.1,2.1985]
[1753159505702,7.41756556,197.15,197.1,2.1985]
[1753159505914,7.41756556,197.14,197.1,0.66]
[1753159506125,21.85644945,197.17,197.07,0.66]
[1753159506308,7.41756556,197.09,197.04,1.5559]
[1753159506512,7.41756556,197.09,197.04,0.66]
[1753159506919,16.78468397,197.12,197.05,0.66]
[1753159507095,7.41756556,197.1,197.05,0.66]
[1753159507303,7.41756556,197.12,197.06,7.41756556]
[1753159507528,16.78468397,197.16,197.07,0.66]
[1753159507717,5.77176548,197.17,197.07,0.66]
[1753159508027,5.77176548,197.17,197.08,7.41756556]
[1753159508338,5.79102414,197.2,197.12,7.41756556]
[1753159508497,7.41756556,197.16,197.11,0.66]
[1753159508824,16.78468397,197.19,197.12,0.66]
[1753159509013,0.06,197.24,197.12,7.3223]
[1753159509320,0.06,197.24,197.22,7.41756556]
[1753159509841,0.06,197.24,197.23,8.07756556]
[1753159510151,0.06,197.24,197.23,13.14778814]
[1753159510823,0.06,197.24,197.23,5.73022258]
[1753159510998,0.06,197.24,197.23,13.14778814]
[1753159511197,0.06,197.24,197.23,16.74822558]
[1753159511418,0.06,197.24,197.23,5.73022258]
[1753159511627,0.06,197.24,197.23,16.74822558]
[1753159513096,0.06,197.24,197.23,5.73022258]
[1753159513303,0.06,197.24,197.23,0.66]
[1753159513517,0.06,197.24,197.21,16.08872676]
[1753159513709,0.06,197.24,197.22,11.018003]
[1753159513902,0.06,197.24,197.23,11.018003]
[1753159514108,0.06,197.24,197.23,11.678003]
[1753159514319,0.06,197.24,197.23,0.66]
[1753159514511,0.06,197.24,197.23,11.678003]
[1753159514817,0.06,197.28,197.24,6.0889]
[1753159515012,1e-08,197.28,197.27,11.018003]
[1753159515320,0.06,197.32,197.27,11.018003]
[1753159515321,0.06,197.32,197.27,52.338003]
[1753159515495,0.06,197.32,197.31,11.018003]
[1753159515928,0.06,197.32,197.31,11.678003]
[1753159516220,0.06,197.32,197.31,52.958003]
[1753159516406,0.06,197.32,197.31,0.66]
[1753159516723,0.06,197.32,197.31,11.678003]
[1753159517829,0.06,197.32,197.31,16.74616984]
[1753159518924,1e-08,197.32,197.31,5.72816684]
[1753159519226,0.06,197.42,197.35,26.0]
[1753159519519,0.06,197.42,197.41,11.018003]
[1753159519721,0.06,197.42,197.41,16.08360251]
[1753159519909,0.06,197.42,197.39,11.018003]
[1753159520221,0.78,197.42,197.38,41.18]
[1753159520455,11.798003,197.42,197.38,41.18]
[1753159520803,0.06,197.42,197.38,41.18]
[1753159521317,0.06,197.42,197.41,11.018003]
[1753159521823,1e-08,197.42,197.41,16.74360251]
[1753159522925,1e-08,197.44,197.42,6.1991]
[1753159523111,1e-08,197.44,197.43,52.098003]
[1753159523317,1e-08,197.44,197.43,52.758003]
[1753159523526,1e-08,197.44,197.43,52.738003]
[1753159523827,1e-08,197.44,197.43,57.80308935]
[1753159524206,1e-08,197.44,197.43,46.78508635]
[1753159524407,1e-08,197.44,197.43,57.80308935]
[1753159524608,1e-08,197.44,197.43,16.74308935]
[1753159524911,11.01800301,197.44,197.39,41.0]
[1753159525118,11.018003,197.42,197.32,0.66]
[1753159525328,11.018003,197.41,197.33,40.98]
[1753159525628,11.018003,197.4,197.34,11.018003]
[1753159525805,11.018003,197.4,197.31,1.6368]
[1753159525806,11.018003,197.38,197.29,0.66]
[1753159526006,11.018003,197.36,197.3,51.978003]
[1753159526423,0.72,197.39,197.3,40.96]
[1753159526731,0.72,197.39,197.3,51.978003]
[1753159526732,11.018003,197.36,197.3,51.978003]
[1753159527031,11.018003,197.36,197.3,16.08642672]
[1753159527237,1e-08,197.44,197.35,11.018003]
[1753159527448,1e-08,197.44,197.36,41.56]
[1753159527621,11.01800301,197.44,197.37,51.918003]
[1753159527979,1e-08,197.44,197.39,11.018003]
[1753159528138,11.018003,197.43,197.37,40.9]
[1753159528438,11.018003,197.38,197.36,40.86]
[1753159528734,11.018003,197.37,197.36,40.86]
[1753159528933,11.018003,197.39,197.36,40.86]
[1753159529136,1e-08,197.44,197.36,56.94473559]
[1753159529439,11.01800301,197.44,197.38,11.018003]
[1753159529741,11.018003,197.39,197.29,0.66]
[1753159529948,11.018003,197.35,197.32,40.82]
[1753159530233,0.72,197.39,197.32,40.82]
[1753159530234,11.018003,197.33,197.32,40.82]
[1753159530432,16.78468397,197.38,197.32,40.82]
[1753159530638,11.018003,197.33,197.32,40.82]
[1753159530842,11.018003,197.34,197.32,40.82]
[1753159531046,11.018003,197.35,197.29,11.018003]
[1753159531210,0.72,197.35,197.28,0.03]
[1753159531536,11.018003,197.29,197.28,0.03]
[1753159531760,0.72,197.29,197.28,0.03]
[1753159531940,11.738003,197.29,197.28,0.03]
[1753159532134,16.78468397,197.28,197.15,5.0721731]
[1753159532455,54.52268697,197.29,197.15,5.0721731]
[1753159532456,16.78468397,197.25,197.15,40.7]
[1753159532641,0.72,197.24,197.14,40.7]
[1753159532836,11.018003,197.18,197.14,40.7]
[1753159533230,11.018003,197.18,197.14,46.43245254]
[1753159533435,11.018003,197.19,197.15,0.66]
[1753159533655,11.018003,197.21,197.16,0.66]
[1753159533859,11.018003,197.22,197.16,0.66]
[1753159534677,11.018003,197.17,197.07,0.66]
[1753159534968,11.018003,197.12,197.09,40.62]
[1753159535133,11.018003,197.13,197.09,40.62]
[1753159535832,11.018003,197.15,197.1,0.66]
[1753159536133,11.018003,197.16,197.11,0.66]
[1753159536348,11.018003,197.18,197.12,11.018003]
[1753159536544,0.72,197.21,197.11,0.66]
[1753159536545,11.018003,197.16,197.11,0.66]
[1753159536833,5.07105402,197.2,197.09,56.71176449]
[1753159537042,11.018003,197.14,197.09,45.69376149]
[1753159537447,11.018003,197.12,197.09,40.52]
[1753159537657,11.738003,197.11,197.08,0.2]
[1753159537864,11.018003,197.1,197.08,0.2]
[1753159539135,11.018003,197.09,197.08,0.2]
[1753159539362,11.718003,197.09,197.08,0.2]
[1753159539744,11.018003,197.09,197.08,0.2]
[1753159540765,0.7,197.15,197.08,5.27401853]
[1753159541069,11.018003,197.12,197.08,0.2]
[1753159541232,0.7,197.15,197.08,0.2]
[1753159541233,11.018003,197.11,197.08,0.2]
[1753159541564,11.018003,197.09,197.08,0.2]
[1753159541942,28.50268697,197.09,197.08,0.2]
[1753159542451,42.78468397,197.05,196.99,0.03]
[1753159542655,11.018003,197.0,196.99,0.03]
[1753159543047,28.50268697,197.0,196.99,0.03]
[1753159543339,33.5788291,197.0,196.99,0.03]
[1753159544945,33.5788291,197.0,196.89,11.018003]
[1753159544946,26.0,196.88,196.77,0.68]
[1753159545263,11.018003,196.79,196.77,0.68]
[1753159545577,11.018003,196.78,196.74,5.08267266]
[1753159545750,11.018003,196.78,196.67,30.601611]
[1753159545751,16.78468397,196.74,196.67,30.601611]
[1753159545952,11.018003,196.68,196.67,30.601611]
[1753159546156,0.3,196.78,196.67,31.281611]
[1753159546460,11.018003,196.71,196.67,30.601611]
[1753159546674,16.78468397,196.79,196.67,30.601611]
[1753159546675,11.018003,196.7,196.67,30.601611]
[1753159546840,11.018003,196.68,196.67,30.601611]
[1753159547356,11.018003,196.72,196.67,36.36627058]
[1753159547565,11.018003,196.7,196.67,31.281611]
[1753159547744,11.018003,196.68,196.67,30.601611]
[1753159548643,28.10268697,196.68,196.67,30.601611]
[1753159549452,33.18708802,196.68,196.67,30.601611]
[1753159549656,22.16908502,196.68,196.67,30.601611]
[1753159549868,17.08468397,196.68,196.67,30.601611]
[1753159550042,55.598246,196.72,196.67,30.601611]
[1753159550246,5.08181725,196.78,196.68,0.68]
[1753159550518,11.018003,196.71,196.67,35.68614976]
[1753159550846,11.018003,196.7,196.67,30.601611]
[1753159551062,11.018003,196.69,196.67,30.601611]
[1753159551378,5.08181725,196.78,196.67,30.601611]
[1753159551379,11.018003,196.68,196.67,30.601611]
[1753159551758,0.7,196.68,196.67,30.601611]
[1753159551965,11.718003,196.68,196.67,30.601611]
[1753159552748,0.7,196.68,196.67,30.601611]
[1753159553059,11.018003,196.68,196.67,30.601611]
[1753159553379,0.7,196.71,196.67,30.601611]
[1753159553583,0.7,196.74,196.67,30.601611]
[1753159553763,11.018003,196.7,196.67,35.68624156]
[1753159553955,11.018003,196.7,196.67,36.36624156]
[1753159554154,5.08248931,196.76,196.67,30.601611]
[1753159554367,11.018003,196.68,196.67,30.601611]
[1753159554867,17.48468397,196.75,196.67,35.68618027]
[1753159555066,11.018003,196.71,196.67,35.68618027]
[1753159555247,16.78468397,196.76,196.67,36.36618027]
[1753159555450,11.018003,196.68,196.67,30.601611]
[1753159556045,11.018003,196.69,196.67,35.68626017]
[1753159556246,11.018003,196.71,196.68,0.68]
[1753159556791,11.018003,196.78,196.7,11.018003]
[1753159556991,11.018003,196.81,196.74,11.018003]
[1753159557290,11.018003,196.81,196.75,0.68]
[1753159557465,44.25161934,196.89,196.75,0.68]
[1753159557466,11.018003,196.83,196.77,11.018003]
[1753159557665,11.018003,196.83,196.76,17.78816831]
[1753159557666,11.018003,196.83,196.78,0.68]
[1753159557961,11.018003,196.86,196.79,11.698003]
[1753159558168,11.018003,196.87,196.8,11.018003]
[1753159558364,11.018003,196.85,196.79,0.68]
[1753159558681,16.78468397,196.9,196.79,0.68]
[1753159558982,0.7,196.91,196.76,58.16816831]
[1753159558983,11.018003,196.8,196.76,45.4623338]
[1753159559163,16.78468397,196.83,196.71,0.68]
[1753159559475,11.018003,196.75,196.72,5.08336722]
[1753159560072,11.018003,196.75,196.72,5.76336722]
[1753159560399,0.7,196.84,196.73,0.68]
[1753159560553,11.018003,196.79,196.73,11.698003]
[1753159560751,16.78468397,196.83,196.72,5.08336722]
[1753159561087,5.08007072,196.85,196.72,5.08336722]
[1753159561253,5.08007072,196.85,196.72,16.78137022]
[1753159561254,11.018003,196.79,196.72,16.78137022]
[1753159561448,40.3,196.87,196.67,70.961611]
[1753159561449,11.018003,196.73,196.67,30.601611]
[1753159561654,11.018003,196.7,196.67,30.601611]
[1753159561854,11.018003,196.71,196.67,30.601611]
[1753159562156,11.018003,196.77,196.7,11.018003]
[1753159562493,11.018003,196.78,196.72,11.018003]
[1753159562659,43.48468397,196.84,196.67,48.39786923]
[1753159562660,11.018003,196.79,196.73,11.698003]
[1753159562860,11.018003,196.82,196.75,11.018003]
[1753159563077,11.018003,196.85,196.76,0.68]
[1753159563284,11.018003,196.81,196.76,0.68]
[1753159563580,11.018003,196.77,196.74,5.08268073]
[1753159563774,11.018003,196.84,196.7,40.26]
[1753159563775,11.018003,196.75,196.7,40.26]
[1753159563973,11.018003,196.74,196.7,40.26]
[1753159564174,11.018003,196.71,196.67,30.601611]
[1753159564487,16.78468397,196.79,196.67,31.281611]
[1753159564675,11.018003,196.68,196.67,30.601611]
[1753159565369,33.58708802,196.68,196.67,30.601611]
[1753159565960,22.56908502,196.68,196.67,30.601611]
[1753159566167,33.58708802,196.68,196.67,30.601611]
[1753159566781,33.58708802,196.68,196.67,4.99701599]
[1753159566990,37.70059217,196.68,196.67,4.99701599]
[1753159567171,33.58708802,196.68,196.67,4.99701599]
[1753159567574,27.80268697,196.68,196.67,4.99701599]
[1753159568089,11.018003,196.69,196.67,4.99701599]
[1753159568293,16.78468397,196.73,196.67,4.99701599]
[1753159568294,11.018003,196.68,196.67,4.99701599]
[1753159568983,11.698003,196.68,196.67,4.99701599]
[1753159569493,16.78240405,196.68,196.67,4.99701599]
[1753159570197,16.78468397,196.67,196.63,0.03]
[1753159570384,53.80268697,196.64,196.63,0.03]
[1753159570776,27.80268697,196.64,196.63,0.03]
[1753159570971,11.018003,196.64,196.63,0.03]
[1753159571367,37.698003,196.64,196.63,0.03]
[1753159571567,42.78468397,196.6,196.45,0.67]
[1753159571790,30.37647349,196.64,196.41,0.67]
[1753159571791,26.0,196.54,196.41,0.67]
[1753159571988,26.0,196.54,196.47,0.2]
[1753159571989,42.78468397,196.49,196.47,0.2]
[1753159572192,11.018003,196.48,196.39,11.75009879]
[1753159572393,6.5031,196.55,196.39,11.75009879]
[1753159572394,26.0,196.44,196.39,11.75009879]
[1753159572700,11.018003,196.4,196.39,11.75009879]
[1753159573025,11.698003,196.4,196.39,11.75009879]
[1753159573211,0.68,196.45,196.39,11.75009879]
[1753159573374,26.68,196.5,196.4,0.67]
[1753159573577,11.018003,196.44,196.4,5.76140592]
[1753159573770,0.68,196.5,196.41,0.67]
[1753159573993,11.018003,196.45,196.41,0.67]
[1753159574174,0.68,196.51,196.39,11.75009879]
[1753159574378,11.018003,196.4,196.39,11.75009879]
[1753159574674,16.78468397,196.45,196.39,12.42009879]
[1753159574880,11.018003,196.4,196.39,11.75009879]
[1753159575486,11.018003,196.41,196.39,17.51200774]
[1753159575686,11.018003,196.41,196.39,11.75009879]
[1753159575900,11.018003,196.4,196.39,11.75009879]
[1753159576706,11.018003,196.42,196.39,11.75009879]
[1753159576904,11.018003,196.43,196.4,0.67]
[1753159577109,11.018003,196.48,196.41,11.688003]
[1753159577280,11.018003,196.5,196.43,11.018003]
[1753159577485,16.50309999,196.63,196.39,29.57163477]
[1753159577486,11.018003,196.51,196.46,5.09009467]
[1753159577789,11.018003,196.51,196.47,0.67]
[1753159577993,11.018003,196.52,196.48,0.67]
[1753159578190,11.018003,196.52,196.46,5.09009467]
[1753159578191,11.018003,196.52,196.49,0.67]
[1753159578706,11.018003,196.55,196.5,0.67]
[1753159578910,11.018003,196.58,196.51,11.018003]
[1753159579111,11.018003,196.62,196.56,11.018003]
[1753159579413,11.018003,196.58,196.51,11.018003]
[1753159579590,11.018003,196.57,196.53,5.08828168]
[1753159579790,11.018003,196.57,196.53,5.75828168]
[1753159580114,11.018003,196.56,196.49,12.72270003]
[1753159580412,11.018003,196.56,196.51,0.67]
[1753159580613,16.78468397,196.63,196.52,0.67]
[1753159580913,11.018003,196.62,196.56,11.018003]
[1753159581207,11.018003,196.61,196.57,0.67]
[1753159581407,11.018003,196.6,196.53,40.49]
[1753159581611,11.018003,196.61,196.54,5.08802279]
[1753159581778,11.018003,196.59,196.54,5.08802279]
[1753159581984,11.018003,196.55,196.48,0.67]
[1753159582205,42.78468397,196.63,196.48,11.688003]
[1753159582206,11.018003,196.54,196.48,11.688003]
[1753159582403,5.08491986,196.66,196.49,0.67]
[1753159582577,11.018003,196.63,196.57,11.018003]
[1753159582778,11.018003,196.63,196.57,11.688003]
[1753159582995,11.018003,196.64,196.57,11.688003]
[1753159583191,0.68,196.68,196.59,11.018003]
[1753159583391,5.76440393,196.68,196.57,0.67]
[1753159583607,11.018003,196.62,196.58,5.08698748]
[1753159583802,11.018003,196.62,196.57,0.67]
[1753159584006,11.018003,196.58,196.54,39.88]
[1753159584197,11.018003,196.55,196.48,0.67]
[1753159584506,11.018003,196.52,196.48,0.67]
[1753159584706,11.018003,196.57,196.49,0.67]
[1753159585007,11.018003,196.58,196.52,11.018003]
[1753159585308,42.78468397,196.63,196.46,0.67]
[1753159585309,11.018003,196.53,196.46,0.67]
[1753159585492,11.018003,196.51,196.46,0.67]
[1753159585806,11.018003,196.51,196.47,5.08983559]
[1753159585990,11.018003,196.52,196.48,0.67]
[1753159586195,17.46468397,196.58,196.47,5.08983559]
[1753159586196,11.018003,196.51,196.47,5.08983559]
[1753159586394,42.78468397,196.55,196.43,40.51]
[1753159586601,11.018003,196.48,196.43,40.51]
[1753159586802,11.018003,196.49,196.43,39.84]
[1753159586998,11.018003,196.49,196.44,0.67]
[1753159587196,11.018003,196.49,196.45,0.67]
[1753159587401,11.018003,196.49,196.45,5.76026298]
[1753159587608,5.08843969,196.53,196.45,5.76026298]
[1753159587793,11.018003,196.47,196.43,44.93072853]
[1753159588112,11.018003,196.45,196.43,39.84]
[1753159588316,42.78468397,196.5,196.39,11.75009879]
[1753159588490,16.78468397,196.48,196.39,16.84181674]
[1753159588808,11.018003,196.43,196.39,12.42009879]
[1753159589010,16.78468397,196.48,196.43,0.03]
[1753159589186,11.018003,196.44,196.43,0.03]
[1753159589389,11.018003,196.47,196.43,5.79080873]
[1753159589590,11.018003,196.49,196.44,0.67]
[1753159589906,11.018003,196.49,196.45,0.67]
[1753159590810,11.018003,196.48,196.45,0.67]
[1753159590983,11.018003,196.47,196.43,0.03]
[1753159591189,11.018003,196.44,196.43,0.03]
[1753159591808,28.48268697,196.44,196.43,0.03]
[1753159592008,27.80268697,196.44,196.43,0.03]
[1753159592318,28.48268697,196.44,196.43,0.03]